[Event "Mistrovství Čech mládeže 2023 - HD16"]
[Site "Harrachov, Czech Republic"]
[Date "2023.10.26"]
[Round "7.17"]
[White "Maršík, Ondřej"]
[Black "Tichý, Tomáš"]
[Result "1/2-1/2"]
[TimeControl "90m + 30s"]
[WhiteElo "1459"]
[BlackElo "1697"]

1. e4 {[%clk 01:30:28]} {[%emt 00:00:30]} c5 {[%clk 01:30:55]} {[%emt
00:00:05]} 2. Nf3 {[%clk 01:30:46]} {[%emt 00:00:13]} Nc6 {[%clk 01:31:18]}
{[%emt 00:00:06]} 3. d4 {[%clk 01:29:46]} {[%emt 00:01:31]} cxd4 {[%clk
01:31:38]} {[%emt 00:00:10]} 4. Nxd4 {[%clk 01:30:11]} {[%emt 00:00:05]} Nf6
{[%clk 01:31:54]} {[%emt 00:00:13]} 5. Nc3 {[%clk 01:28:18]} {[%emt 00:02:24]}
e5 {[%clk 01:32:19]} {[%emt 00:00:05]} 6. Nb3 {[%clk 01:24:03]} {[%emt
00:04:45]} Bb4 {[%clk 01:32:36]} {[%emt 00:00:13]} 7. f3 {[%clk 01:22:50]}
{[%emt 00:01:43]} d5 {[%clk 01:23:57]} {[%emt 00:09:08]} 8. exd5 {[%clk
01:15:25]} {[%emt 00:07:56]} Nxd5 {[%clk 01:23:57]} {[%emt 00:00:30]} 9. Bd2
{[%clk 01:12:59]} {[%emt 00:02:56]} Bxc3 {[%clk 01:17:09]} {[%emt 00:07:18]} 10.
Bxc3 {[%clk 01:10:14]} {[%emt 00:03:14]} O-O {[%clk 00:57:10]} {[%emt
00:20:29]} 11. Qd2 {[%clk 01:02:54]} {[%emt 00:07:50]} Nxc3 {[%clk 00:52:03]}
{[%emt 00:05:38]} 12. Qxc3 {[%clk 00:59:27]} {[%emt 00:03:56]} Qh4+ {[%clk
00:51:10]} {[%emt 00:01:23]} 13. g3 {[%clk 00:58:02]} {[%emt 00:01:56]} Qb4
{[%clk 00:49:11]} {[%emt 00:02:29]} 14. O-O-O {[%clk 00:52:21]} {[%emt
00:06:11]} Qxc3 {[%clk 00:47:46]} {[%emt 00:01:55]} 15. bxc3 {[%clk 00:52:25]}
{[%emt 00:00:26]} Be6 {[%clk 00:34:58]} {[%emt 00:13:18]} 16. Kb2 {[%clk
00:45:25]} {[%emt 00:07:30]} b6 {[%clk 00:32:46]} {[%emt 00:02:41]} 17. Bd3
{[%clk 00:42:01]} {[%emt 00:03:55]} Na5 {[%clk 00:22:18]} {[%emt 00:10:58]} 18.
Rhe1 {[%clk 00:36:21]} {[%emt 00:06:10]} f6 {[%clk 00:18:16]} {[%emt 00:04:32]}
19. Nd2 {[%clk 00:31:21]} {[%emt 00:05:30]} Rac8 {[%clk 00:16:04]} {[%emt
00:02:41]} 20. Ne4 {[%clk 00:27:45]} {[%emt 00:04:06]} Rfd8 {[%clk 00:10:18]}
{[%emt 00:06:17]} 21. Ba6 {[%clk 00:23:54]} {[%emt 00:04:21]} Rb8 {[%clk
00:05:54]} {[%emt 00:04:54]} 22. Bb5 {[%clk 00:17:25]} {[%emt 00:06:58]}
1/2-1/2

[Event "Mistrovství Čech mládeže 2023 - HD16"]
[Site "Harrachov, Czech Republic"]
[Date "2023.10.26"]
[Round "7.18"]
[White "Krupka, Aleš"]
[Black "Mrázek, Adam"]
[Result "0-1"]
[TimeControl "90m + 30s"]
[WhiteElo "1444"]
[BlackElo "1669"]

1. e4 {[%clk 01:30:58]} {[%emt 00:00:02]} e6 {[%clk 01:30:44]} {[%emt
00:00:17]} 2. d4 {[%clk 01:30:59]} {[%emt 00:00:29]} d5 {[%clk 01:31:04]}
{[%emt 00:00:11]} 3. exd5 {[%clk 01:29:17]} {[%emt 00:02:11]} exd5 {[%clk
01:31:07]} {[%emt 00:00:27]} 4. Nf3 {[%clk 01:26:22]} {[%emt 00:03:24]} Bd6
{[%clk 01:30:43]} {[%emt 00:00:55]} 5. Bd3 {[%clk 01:19:00]} {[%emt 00:07:52]}
Nc6 {[%clk 01:28:43]} {[%emt 00:02:30]} 6. c3 {[%clk 01:17:24]} {[%emt
00:02:05]} Nge7 {[%clk 01:28:09]} {[%emt 00:01:04]} 7. Qc2 {[%clk 01:12:09]}
{[%emt 00:05:45]} Bg4 {[%clk 01:27:42]} {[%emt 00:00:58]} 8. Nh4 {[%clk
01:02:28]} {[%emt 00:10:11]} Qd7 {[%clk 01:24:40]} {[%emt 00:03:32]} 9. h3
{[%clk 01:00:42]} {[%emt 00:02:16]} Be6 {[%clk 01:13:18]} {[%emt 00:11:52]} 10.
Be3 {[%clk 00:57:24]} {[%emt 00:03:48]} h6 {[%clk 01:05:07]} {[%emt 00:08:41]}
11. Nd2 {[%clk 00:33:38]} {[%emt 00:24:15]} g5 {[%clk 00:49:21]} {[%emt
00:16:16]} 12. Nhf3 {[%clk 00:30:12]} {[%emt 00:03:57]} f5 {[%clk 00:48:22]}
{[%emt 00:01:29]} 13. Nb3 {[%clk 00:28:14]} {[%emt 00:02:28]} f4 {[%clk
00:43:39]} {[%emt 00:05:13]} 14. Bd2 {[%clk 00:28:11]} {[%emt 00:00:33]} O-O-O
{[%clk 00:43:58]} {[%emt 00:00:11]} 15. O-O-O {[%clk 00:25:25]} {[%emt
00:03:15]} b6 {[%clk 00:41:19]} {[%emt 00:03:10]} 16. c4 {[%clk 00:22:57]}
{[%emt 00:02:57]} dxc4 {[%clk 00:37:40]} {[%emt 00:04:09]} 17. Bxc4 {[%clk
00:23:06]} {[%emt 00:00:20]} Bf5 {[%clk 00:36:25]} {[%emt 00:01:46]} 18. Qc3
{[%clk 00:19:54]} {[%emt 00:03:42]} Nb4 {[%clk 00:23:49]} {[%emt 00:13:06]} 19.
Na1 {[%clk 00:19:47]} {[%emt 00:00:38]} b5 {[%clk 00:07:00]} {[%emt 00:17:19]}
20. Ne5 {[%emt 00:08:55]} bxc4 {[%clk 00:05:19]} {[%emt 00:02:09]} 21. Nxd7
{[%clk 00:08:08]} {[%emt 00:03:44]} Nxa2# {[%clk 00:05:38]} {[%emt 00:00:11]}
0-1

[Event "Mistrovství Čech mládeže 2023 - HD16"]
[Site "Harrachov, Czech Republic"]
[Date "2023.10.26"]
[Round "7.19"]
[White "Kohm, Patrik"]
[Black "Markina, Sofiia"]
[Result "1/2-1/2"]
[TimeControl "90m + 30s"]
[WhiteElo "1475"]
[BlackElo "1564"]

1. e4 {[%clk 01:30:55]} {[%emt 00:00:04]} c5 {[%clk 01:30:52]} {[%emt
00:00:09]} 2. Nc3 {[%clk 01:31:18]} {[%emt 00:00:06]} Nc6 {[%clk 01:31:10]}
{[%emt 00:00:13]} 3. Bb5 {[%clk 01:31:30]} {[%emt 00:00:18]} d6 {[%clk
01:31:00]} {[%emt 00:00:40]} 4. Bxc6+ {[%clk 01:30:04]} {[%emt 00:01:56]} bxc6
{[%clk 01:31:29]} {[%emt 00:00:01]} 5. Nf3 {[%clk 01:30:05]} {[%emt 00:00:29]}
Nf6 {[%clk 01:31:31]} {[%emt 00:00:27]} 6. O-O {[%clk 01:28:37]} {[%emt
00:01:58]} e6 {[%clk 01:31:40]} {[%emt 00:00:21]} 7. e5 {[%clk 01:28:03]}
{[%emt 00:01:04]} Nd5 {[%clk 01:31:29]} {[%emt 00:00:41]} 8. Na4 {[%clk
01:18:17]} {[%emt 00:10:17]} Nb6 {[%clk 01:20:49]} {[%emt 00:11:10]} 9. c3
{[%clk 01:16:36]} {[%emt 00:02:11]} d5 {[%clk 01:20:03]} {[%emt 00:01:16]} 10.
d4 {[%clk 01:15:01]} {[%emt 00:02:05]} cxd4 {[%clk 01:18:51]} {[%emt 00:01:42]}
11. cxd4 {[%clk 01:14:47]} {[%emt 00:00:43]} Be7 {[%clk 01:18:38]} {[%emt
00:00:44]} 12. Qc2 {[%clk 01:14:30]} {[%emt 00:00:46]} Nxa4 {[%clk 01:14:47]}
{[%emt 00:04:21]} 13. Qxa4 {[%clk 01:14:51]} {[%emt 00:00:09]} Bb7 {[%clk
01:14:43]} {[%emt 00:00:34]} 14. Bd2 {[%clk 01:14:26]} {[%emt 00:00:55]} a5
{[%clk 01:10:55]} {[%emt 00:04:18]} 15. Rfc1 {[%clk 01:13:33]} {[%emt
00:01:23]} O-O {[%clk 01:09:07]} {[%emt 00:02:19]} 16. Ne1 {[%clk 01:13:39]}
{[%emt 00:00:23]} f6 {[%clk 01:06:26]} {[%emt 00:03:11]} 17. Nd3 {[%clk
01:11:58]} {[%emt 00:02:11]} fxe5 {[%clk 01:04:49]} {[%emt 00:02:08]} 18. Nxe5
{[%clk 01:12:11]} {[%emt 00:00:17]} Qc7 {[%clk 01:02:55]} {[%emt 00:02:24]} 19.
Nxc6 {[%clk 01:11:42]} {[%emt 00:00:59]} Bxc6 {[%clk 01:00:40]} {[%emt
00:02:45]} 20. Qxc6 {[%clk 01:10:55]} {[%emt 00:01:17]} Qxc6 {[%clk 01:00:34]}
{[%emt 00:00:36]} 21. Rxc6 {[%clk 01:11:16]} {[%emt 00:00:08]} Bf6 {[%clk
00:59:30]} {[%emt 00:01:34]} 22. Bc3 {[%clk 01:10:37]} {[%emt 00:01:09]} Rfe8
{[%clk 00:59:06]} {[%emt 00:00:55]} 23. a4 {[%clk 01:09:33]} {[%emt 00:01:33]}
e5 {[%clk 00:57:40]} {[%emt 00:01:57]} 24. dxe5 {[%clk 01:09:21]} {[%emt
00:00:41]} Bxe5 {[%clk 00:58:01]} {[%emt 00:00:10]} 25. Rc5 {[%clk 01:08:36]}
{[%emt 00:01:14]} d4 {[%clk 00:53:04]} {[%emt 00:05:28]} 26. Bxa5 {[%clk
01:06:55]} {[%emt 00:02:11]} d3 {[%clk 00:50:45]} {[%emt 00:02:48]} 27. Re1
{[%clk 01:03:38]} {[%emt 00:03:47]} Rxa5 {[%clk 00:45:09]} {[%emt 00:06:07]} 28.
Rxa5 {[%clk 01:03:46]} {[%emt 00:00:22]} d2 {[%clk 00:45:31]} {[%emt 00:00:08]}
29. Rd1 {[%clk 01:03:30]} {[%emt 00:00:45]} Bxb2 {[%clk 00:43:35]} {[%emt
00:02:26]} 30. Ra8 {[%clk 01:01:36]} {[%emt 00:02:25]} Rxa8 {[%clk 00:43:51]}
{[%emt 00:00:14]} 31. Rxd2 {[%clk 01:01:59]} {[%emt 00:00:07]} Rxa4 {[%clk
00:43:48]} {[%emt 00:00:33]} 32. Kf1 {[%clk 01:02:15]} {[%emt 00:00:14]} Bf6
{[%clk 00:43:53]} {[%emt 00:00:24]} 33. f3 {[%clk 01:02:19]} {[%emt 00:00:26]}
Rd4 {[%clk 00:43:35]} {[%emt 00:00:48]} 34. Rxd4 {[%clk 01:01:04]} {[%emt
00:01:45]} Bxd4 {[%clk 00:44:04]} {[%emt 00:00:02]} 35. g3 {[%clk 01:01:24]}
{[%emt 00:00:09]} Kf7 {[%clk 00:44:28]} {[%emt 00:00:06]} 36. Kg2 {[%clk
01:01:47]} {[%emt 00:00:07]} g5 {[%clk 00:44:50]} {[%emt 00:00:08]} 37. Kh3
{[%clk 01:01:29]} {[%emt 00:00:48]} Kf6 {[%clk 00:45:02]} {[%emt 00:00:18]} 38.
Kg4 {[%clk 01:01:38]} {[%emt 00:00:21]} Kg6 {[%clk 00:45:13]} {[%emt 00:00:19]}
39. h4 {[%clk 01:01:31]} {[%emt 00:00:38]} gxh4 {[%clk 00:45:11]} {[%emt
00:00:32]} 40. Kxh4 {[%clk 01:01:45]} {[%emt 00:00:15]} Bf6+ {[%clk 00:45:19]}
{[%emt 00:00:22]} 41. Kh3 {[%clk 01:02:07]} {[%emt 00:00:08]} Kf5 {[%clk
00:45:36]} {[%emt 00:00:12]} 42. Kg2 {[%clk 01:02:26]} {[%emt 00:00:12]} Ke5
{[%clk 00:45:47]} {[%emt 00:00:18]} 43. Kf2 {[%clk 01:02:41]} {[%emt 00:00:16]}
Kd4 {[%clk 00:46:10]} {[%emt 00:00:08]} 44. Ke2 {[%clk 01:03:00]} {[%emt
00:00:11]} Be5 {[%clk 00:46:26]} {[%emt 00:00:14]} 45. f4 {[%clk 01:03:14]}
{[%emt 00:00:15]} Bg7 {[%clk 00:46:26]} {[%emt 00:00:30]} 46. Kf3 {[%clk
01:03:37]} {[%emt 00:00:07]} h6 {[%clk 00:46:46]} {[%emt 00:00:11]} 47. g4
{[%clk 01:03:57]} {[%emt 00:00:09]} 1/2-1/2

[Event "Mistrovství Čech mládeže 2023 - HD16"]
[Site "Harrachov, Czech Republic"]
[Date "2023.10.26"]
[Round "7.20"]
[White "Ocelák, David"]
[Black "Bauer, Sebastian"]
[Result "1/2-1/2"]
[TimeControl "90m + 30s"]
[WhiteElo "1580"]
[BlackElo "1366"]

1. e4 {[%clk 01:30:51]} {[%emt 00:00:07]} e5 {[%clk 01:29:48]} {[%emt
00:01:13]} 2. Nf3 {[%clk 01:30:14]} {[%emt 00:01:07]} Nc6 {[%clk 01:30:17]}
{[%emt 00:00:02]} 3. d4 {[%clk 01:30:17]} {[%emt 00:00:26]} exd4 {[%clk
01:28:02]} {[%emt 00:02:46]} 4. Nxd4 {[%clk 01:30:25]} {[%emt 00:00:21]} Bc5
{[%clk 01:28:13]} {[%emt 00:00:19]} 5. Be3 {[%clk 01:30:36]} {[%emt 00:00:19]}
Qf6 {[%clk 01:28:19]} {[%emt 00:00:25]} 6. c3 {[%clk 01:30:42]} {[%emt
00:00:23]} Qg6 {[%clk 01:24:18]} {[%emt 00:04:32]} 7. f3 {[%clk 01:28:30]}
{[%emt 00:02:42]} d6 {[%clk 01:18:33]} {[%emt 00:06:15]} 8. Qd2 {[%clk
01:26:50]} {[%emt 00:02:09]} Nge7 {[%clk 01:16:13]} {[%emt 00:02:51]} 9. Nb5
{[%clk 01:18:56]} {[%emt 00:08:24]} Bxe3 {[%clk 01:14:32]} {[%emt 00:02:11]} 10.
Qxe3 {[%clk 01:19:10]} {[%emt 00:00:15]} Kd8 {[%clk 01:13:09]} {[%emt
00:01:53]} 11. Nd2 {[%clk 01:15:23]} {[%emt 00:04:17]} f5 {[%clk 01:04:56]}
{[%emt 00:08:44]} 12. O-O-O {[%clk 01:02:40]} {[%emt 00:13:12]} fxe4 {[%clk
00:52:33]} {[%emt 00:12:55]} 13. Nxe4 {[%clk 01:00:48]} {[%emt 00:02:21]} Nf5
{[%clk 00:46:40]} {[%emt 00:06:24]} 14. Qg5+ {[%clk 00:50:21]} {[%emt
00:10:56]} Qxg5+ {[%clk 00:46:04]} {[%emt 00:01:06]} 15. Nxg5 {[%clk 00:50:39]}
{[%emt 00:00:12]} Nh6 {[%clk 00:36:51]} {[%emt 00:09:43]} 16. Bd3 {[%clk
00:48:11]} {[%emt 00:02:58]} a6 {[%clk 00:35:45]} {[%emt 00:01:36]} 17. Nd4
{[%clk 00:47:00]} {[%emt 00:01:41]} Nxd4 {[%clk 00:34:51]} {[%emt 00:01:24]} 18.
cxd4 {[%clk 00:47:22]} {[%emt 00:00:07]} Re8 {[%clk 00:23:46]} {[%emt
00:11:35]} 19. Rhe1 {[%clk 00:45:40]} {[%emt 00:02:12]} Rxe1 {[%clk 00:22:51]}
{[%emt 00:01:26]} 20. Rxe1 {[%clk 00:46:02]} {[%emt 00:00:08]} Bf5 {[%clk
00:23:12]} {[%emt 00:00:09]} 21. Kd2 {[%clk 00:42:18]} {[%emt 00:04:13]} Kd7
{[%clk 00:20:23]} {[%emt 00:03:20]} 22. g4 {[%clk 00:35:37]} {[%emt 00:07:11]}
Bxd3 {[%clk 00:17:51]} {[%emt 00:03:02]} 23. Kxd3 {[%clk 00:35:57]} {[%emt
00:00:09]} Rf8 {[%clk 00:17:17]} {[%emt 00:01:05]} 24. Re3 {[%clk 00:35:36]}
{[%emt 00:00:51]} Nf7 {[%clk 00:14:14]} {[%emt 00:03:33]} 25. Ne6 {[%clk
00:34:18]} {[%emt 00:01:46]} Ne5+ {[%clk 00:03:14]} {[%emt 00:11:31]} 26. dxe5
{[%clk 00:32:33]} 1/2-1/2

[Event "Mistrovství Čech mládeže 2023 - HD16"]
[Site "Harrachov, Czech Republic"]
[Date "2023.10.27"]
[Round "8.1"]
[White "Andrle, Filip"]
[Black "Dvořák, Jan"]
[Result "1-0"]
[TimeControl "90m + 30s"]
[WhiteElo "1830"]
[BlackElo "1789"]

1. e4 {[%clk 01:30:57]} {[%emt 00:00:02]} e6 {[%clk 01:30:54]} {[%emt
00:00:07]} 2. d4 {[%clk 01:30:28]} {[%emt 00:00:58]} d5 {[%clk 01:31:18]}
{[%emt 00:00:06]} 3. Nc3 {[%clk 01:29:24]} {[%emt 00:01:34]} Nf6 {[%clk
01:31:20]} {[%emt 00:00:28]} 4. Bg5 {[%clk 01:28:45]} {[%emt 00:01:08]} Be7
{[%clk 01:31:19]} {[%emt 00:00:32]} 5. e5 {[%clk 01:28:24]} {[%emt 00:00:51]}
Nfd7 {[%clk 01:31:15]} {[%emt 00:00:34]} 6. h4 {[%clk 01:27:44]} {[%emt
00:01:10]} c5 {[%clk 01:28:10]} {[%emt 00:03:36]} 7. Bxe7 {[%clk 01:27:11]}
{[%emt 00:01:02]} Qxe7 {[%clk 01:28:28]} {[%emt 00:00:12]} 8. Nb5 {[%clk
01:26:22]} {[%emt 00:01:19]} Kd8 {[%clk 01:22:53]} {[%emt 00:06:06]} 9. c3
{[%clk 01:15:33]} {[%emt 00:11:19]} Nc6 {[%clk 01:20:53]} {[%emt 00:02:30]} 10.
Nf3 {[%clk 01:12:31]} {[%emt 00:03:32]} f6 {[%clk 01:17:54]} {[%emt 00:03:29]}
11. exf6 {[%clk 00:52:55]} {[%emt 00:20:05]} gxf6 {[%clk 01:17:18]} {[%emt
00:01:06]} 12. g3 {[%clk 00:48:36]} {[%emt 00:04:50]} a6 {[%clk 01:15:58]}
{[%emt 00:01:50]} 13. Na3 {[%clk 00:45:33]} {[%emt 00:03:32]} Nb6 {[%clk
01:14:11]} {[%emt 00:02:18]} 14. Bg2 {[%clk 00:38:46]} {[%emt 00:07:18]} Kc7
{[%clk 01:09:31]} {[%emt 00:05:10]} 15. O-O {[%clk 00:34:38]} {[%emt 00:04:37]}
e5 {[%clk 01:08:21]} {[%emt 00:01:40]} 16. dxc5 {[%clk 00:29:17]} {[%emt
00:05:51]} Qxc5 {[%clk 01:08:04]} {[%emt 00:00:47]} 17. Nd2 {[%clk 00:29:24]}
{[%emt 00:00:23]} Be6 {[%clk 00:53:02]} {[%emt 00:15:32]} 18. Rc1 {[%clk
00:26:11]} {[%emt 00:03:42]} Rhg8 {[%clk 00:51:41]} {[%emt 00:01:48]} 19. b4
{[%clk 00:21:34]} {[%emt 00:05:11]} Qe7 {[%clk 00:50:38]} {[%emt 00:01:33]} 20.
Qe2 {[%clk 00:17:05]} {[%emt 00:04:59]} Rg7 {[%clk 00:43:26]} {[%emt 00:07:42]}
21. Nb3 {[%clk 00:15:32]} {[%emt 00:02:04]} Rag8 {[%clk 00:41:46]} {[%emt
00:02:10]} 22. Qe3 {[%clk 00:14:57]} {[%emt 00:01:05]} Rg4 {[%clk 00:33:20]}
{[%emt 00:08:41]} 23. Nc5 {[%clk 00:13:39]} {[%emt 00:02:02]} Nc4 {[%clk
00:30:52]} {[%emt 00:02:58]} 24. Nxc4 {[%clk 00:13:41]} {[%emt 00:00:27]} Rxc4
{[%clk 00:30:47]} {[%emt 00:00:35]} 25. Rfd1 {[%clk 00:12:55]} {[%emt
00:01:16]} Rd8 {[%clk 00:27:03]} {[%emt 00:04:13]} 26. Bf1 {[%clk 00:11:08]}
{[%emt 00:02:18]} d4 {[%clk 00:25:10]} {[%emt 00:02:24]} 27. Nxe6+ {[%clk
00:10:42]} {[%emt 00:00:56]} Qxe6 {[%clk 00:23:49]} {[%emt 00:01:51]} 28. Bxc4
{[%clk 00:10:44]} {[%emt 00:00:27]} Qxc4 {[%clk 00:23:55]} {[%emt 00:00:25]} 29.
cxd4 {[%clk 00:10:30]} {[%emt 00:00:44]} Qxa2 {[%clk 00:22:10]} {[%emt
00:02:14]} 30. dxe5 {[%clk 00:09:28]} {[%emt 00:01:33]} Re8 {[%clk 00:20:52]}
{[%emt 00:01:49]} 31. Rxc6+ {[%clk 00:08:21]} {[%emt 00:01:37]} 1-0

[Event "Mistrovství Čech mládeže 2023 - HD16"]
[Site "Harrachov, Czech Republic"]
[Date "2023.10.27"]
[Round "8.2"]
[White "Hrbek, Jáchym"]
[Black "Davídek, Zdeněk"]
[Result "0-1"]
[TimeControl "90m + 30s"]
[WhiteElo "1973"]
[BlackElo "2110"]

1. e4 {[%clk 01:30:48]} {[%emt 00:00:10]} e5 {[%clk 01:30:37]} {[%emt
00:00:24]} 2. Nf3 {[%clk 01:31:02]} {[%emt 00:00:15]} Nc6 {[%clk 01:31:02]}
{[%emt 00:00:06]} 3. Bc4 {[%clk 01:31:20]} {[%emt 00:00:12]} Nf6 {[%clk
01:31:06]} {[%emt 00:00:28]} 4. d3 {[%clk 01:31:23]} {[%emt 00:00:27]} Be7
{[%clk 01:30:38]} {[%emt 00:00:57]} 5. c3 {[%clk 01:31:33]} {[%emt 00:00:19]}
O-O {[%clk 01:30:02]} {[%emt 00:01:07]} 6. Bb3 {[%clk 01:31:42]} {[%emt
00:00:21]} d5 {[%clk 01:24:24]} {[%emt 00:06:08]} 7. Qe2 {[%clk 01:31:37]}
{[%emt 00:00:34]} Qd6 {[%clk 01:08:02]} {[%emt 00:16:53]} 8. Nbd2 {[%clk
01:30:37]} {[%emt 00:01:29]} Be6 {[%clk 01:02:41]} {[%emt 00:05:52]} 9. h3
{[%clk 01:25:15]} {[%emt 00:05:52]} Rad8 {[%clk 00:56:24]} {[%emt 00:06:47]} 10.
exd5 {[%clk 01:15:07]} {[%emt 00:10:38]} Bxd5 {[%clk 00:56:07]} {[%emt
00:00:48]} 11. Ne4 {[%clk 01:13:14]} {[%emt 00:02:23]} Qe6 {[%clk 00:46:32]}
{[%emt 00:10:05]} 12. Neg5 {[%clk 01:05:29]} {[%emt 00:08:15]} Qd7 {[%clk
00:44:32]} {[%emt 00:02:30]} 13. Bc2 {[%clk 01:04:46]} {[%emt 00:01:12]} h6
{[%clk 00:37:50]} {[%emt 00:07:13]} 14. Ne4 {[%clk 01:04:42]} {[%emt 00:00:33]}
Nh5 {[%clk 00:27:18]} {[%emt 00:11:03]} 15. O-O {[%clk 00:48:17]} {[%emt
00:16:54]} f5 {[%clk 00:26:09]} {[%emt 00:01:39]} 16. Ne1 {[%clk 00:40:59]}
{[%emt 00:07:48]} Bf7 {[%clk 00:23:25]} {[%emt 00:03:14]} 17. Bb3 {[%clk
00:36:32]} {[%emt 00:04:58]} fxe4 {[%clk 00:20:29]} {[%emt 00:03:26]} 18. Qxh5
{[%clk 00:36:18]} {[%emt 00:00:43]} exd3 {[%clk 00:20:43]} {[%emt 00:00:16]} 19.
Bxh6 {[%clk 00:35:54]} {[%emt 00:00:54]} Bxb3 {[%clk 00:20:44]} {[%emt
00:00:29]} 20. axb3 {[%clk 00:36:10]} {[%emt 00:00:14]} Bc5 {[%clk 00:13:18]}
{[%emt 00:07:56]} 21. Bd2 {[%clk 00:31:39]} {[%emt 00:05:01]} Qf5 {[%clk
00:10:17]} {[%emt 00:03:32]} 22. Qxf5 {[%clk 00:25:04]} {[%emt 00:07:04]} Rxf5
{[%clk 00:10:45]} {[%emt 00:00:01]} 23. g4 {[%clk 00:23:54]} {[%emt 00:01:40]}
Rf7 {[%clk 00:06:10]} {[%emt 00:05:06]} 24. Ra4 {[%clk 00:23:19]} {[%emt
00:01:05]} Bb6 {[%clk 00:04:10]} {[%emt 00:02:29]} 25. Kg2 {[%clk 00:22:25]}
{[%emt 00:01:23]} Rdf8 {[%clk 00:03:17]} {[%emt 00:01:24]} 26. f4 {[%clk
00:21:56]} {[%emt 00:00:59]} Na5 {[%clk 00:03:06]} {[%emt 00:00:41]} 27. Rf3
{[%clk 00:19:53]} {[%emt 00:02:33]} Nxb3 {[%clk 00:02:11]} {[%emt 00:01:25]} 28.
Rb4 {[%clk 00:17:49]} {[%emt 00:02:34]} e4 {[%clk 00:02:08]} {[%emt 00:00:33]}
29. Rxb3 {[%clk 00:17:58]} {[%emt 00:00:21]} exf3+ {[%clk 00:02:33]} {[%emt
00:00:05]} 30. Kxf3 {[%clk 00:15:16]} {[%emt 00:03:11]} Rxf4+ {[%clk 00:02:52]}
{[%emt 00:00:11]} 31. Bxf4 {[%clk 00:13:51]} {[%emt 00:01:55]} d2 {[%clk
00:03:19]} {[%emt 00:00:04]} 0-1

[Event "Mistrovství Čech mládeže 2023 - HD16"]
[Site "Harrachov, Czech Republic"]
[Date "2023.10.27"]
[Round "8.3"]
[White "Stein, Michael"]
[Black "Hozda, Max"]
[Result "1-0"]
[TimeControl "90m + 30s"]
[WhiteElo "1717"]
[BlackElo "2105"]

1. e4 {[%clk 01:30:58]} {[%emt 00:00:01]} c6 {[%clk 01:25:49]} {[%emt
00:05:06]} 2. d4 {[%clk 01:31:23]} {[%emt 00:00:10]} d5 {[%clk 01:26:13]}
{[%emt 00:00:06]} 3. e5 {[%clk 01:31:49]} {[%emt 00:00:05]} c5 {[%clk
01:26:23]} {[%emt 00:00:21]} 4. dxc5 {[%clk 01:32:02]} {[%emt 00:00:17]} e6
{[%clk 01:26:40]} {[%emt 00:00:13]} 5. a3 {[%clk 01:31:37]} {[%emt 00:00:55]}
Bxc5 {[%clk 01:27:02]} {[%emt 00:00:08]} 6. b4 {[%clk 01:30:28]} {[%emt
00:01:38]} Bb6 {[%clk 01:27:22]} {[%emt 00:00:10]} 7. Qg4 {[%clk 01:28:55]}
{[%emt 00:02:03]} Kf8 {[%clk 01:26:01]} {[%emt 00:01:51]} 8. Nf3 {[%clk
01:27:15]} {[%emt 00:02:10]} Qc7 {[%clk 01:24:14]} {[%emt 00:02:18]} 9. Bd3
{[%clk 01:25:22]} {[%emt 00:02:21]} Nd7 {[%clk 01:18:51]} {[%emt 00:05:54]} 10.
Bb2 {[%clk 01:22:33]} {[%emt 00:03:20]} Ne7 {[%clk 01:16:34]} {[%emt 00:02:47]}
11. O-O {[%clk 01:19:56]} {[%emt 00:03:07]} Qb8 {[%clk 01:00:31]} {[%emt
00:16:33]} 12. Qf4 {[%clk 01:13:31]} {[%emt 00:06:53]} h6 {[%clk 00:57:04]}
{[%emt 00:03:59]} 13. h4 {[%clk 01:06:10]} {[%emt 00:07:49]} f6 {[%clk
00:45:10]} {[%emt 00:12:25]} 14. h5 {[%clk 01:00:10]} {[%emt 00:06:29]} Bc7
{[%clk 00:40:25]} {[%emt 00:05:16]} 15. Re1 {[%clk 00:55:49]} {[%emt 00:04:49]}
Nc6 {[%clk 00:38:24]} {[%emt 00:02:32]} 16. exf6 {[%clk 00:50:26]} {[%emt
00:05:53]} gxf6 {[%clk 00:38:08]} {[%emt 00:00:47]} 17. Qh4 {[%clk 00:49:46]}
{[%emt 00:01:07]} e5 {[%clk 00:31:08]} {[%emt 00:07:34]} 18. Bf5 {[%clk
00:48:01]} {[%emt 00:02:14]} Bd8 {[%clk 00:29:18]} {[%emt 00:02:20]} 19. b5
{[%clk 00:45:29]} {[%emt 00:03:02]} Na5 {[%clk 00:22:08]} {[%emt 00:07:40]} 20.
Nxe5 {[%clk 00:43:44]} {[%emt 00:02:15]} Nxe5 {[%clk 00:19:42]} {[%emt
00:02:56]} 21. Bxe5 {[%clk 00:43:18]} {[%emt 00:00:55]} Bxf5 {[%clk 00:18:46]}
{[%emt 00:01:26]} 22. Bxb8 {[%clk 00:43:25]} {[%emt 00:00:23]} Rxb8 {[%clk
00:19:11]} {[%emt 00:00:06]} 23. Qf4 {[%clk 00:43:30]} {[%emt 00:00:24]} 1-0